bitfinex-derivatives/quotes_SOLF0:USTF0_20250509
["timestamp","ask_amount","ask_price","bid_price","bid_amount"]
[1746763725806,32.34,161.76,161.7,6.1857]
[1746763726506,32.34,161.76,161.71,6.1854]
[1746763727307,32.34,161.76,161.7,6.1857]
[1746763728204,6.1846,161.74,161.7,6.1857]
[1746763728408,32.34,161.76,161.69,38.3861]
[1746763728707,32.34,161.76,161.69,32.2]
[1746763729711,6.1846,161.74,161.65,3.8575]
[1746763729911,6.1846,161.74,161.66,32.18]
[1746763730410,6.1846,161.74,161.7,6.1858]
[1746763731007,6.1847,161.73,161.69,6.1861]
[1746763732312,6.1844,161.74,161.69,6.1861]
[1746763732717,6.1847,161.73,161.69,6.1861]
[1746763733014,32.34,161.76,161.68,6.1864]
[1746763733417,6.185,161.73,161.66,32.18]
[1746763733812,6.185,161.73,161.68,6.1865]
[1746763734317,6.185,161.73,161.66,32.18]
[1746763735014,6.185,161.73,161.69,6.1861]
[1746763735427,6.1844,161.74,161.69,6.1861]
[1746763735724,32.16,161.75,161.69,6.1861]
[1746763737216,6.1848,161.73,161.69,6.1861]
[1746763738915,6.1845,161.74,161.69,6.1861]
[1746763739220,32.16,161.75,161.69,6.1861]
[1746763740321,6.1847,161.73,161.69,6.1861]
[1746763740521,32.16,161.75,161.7,6.1858]
[1746763740921,6.1844,161.74,161.7,6.1858]
[1746763741322,32.34,161.76,161.66,6.19861914]
[1746763741522,32.34,161.76,161.69,6.19861914]
[1746763741723,32.34,161.76,161.7,2.0504]
[1746763742020,32.34,161.76,161.73,6.1844]
[1746763742211,32.34,161.76,161.7,34.1904]
[1746763742413,389.22,161.8,161.72,6.19861914]
[1746763742620,38.4022,161.8,161.72,6.19861914]
[1746763743320,38.4022,161.8,161.75,6.1839]
[1746763743522,32.22,161.8,161.72,6.19861914]
[1746763743723,32.22,161.8,161.71,4.1846]
[1746763744126,6.1828,161.78,161.74,6.184]
[1746763744418,32.22,161.8,161.71,4.1846]
[1746763744725,6.183,161.78,161.74,6.184]
[1746763745123,32.22,161.8,161.71,4.1846]
[1746763745321,6.1829,161.78,161.74,6.1842]
[1746763745723,32.22,161.8,161.74,6.1842]
[1746763746224,6.1831,161.77,161.73,6.1845]
[1746763746424,32.22,161.8,161.71,4.1846]
[1746763746816,6.1834,161.77,161.73,6.1844]
[1746763747020,32.22,161.8,161.73,6.1844]
[1746763747330,32.22,161.8,161.71,4.1846]
[1746763747524,32.22,161.8,161.72,6.185]
[1746763747723,32.22,161.8,161.7,2.0504]
[1746763748122,6.1841,161.75,161.7,2.0504]
[1746763748523,32.22,161.8,161.7,2.0504]
[1746763748726,2.0929,161.79,161.69,70.5261]
[1746763748925,2.0929,161.79,161.69,32.12]
[1746763748926,2.9908,161.79,161.69,32.12]
[1746763749122,2.9908,161.79,161.67,3.9988]
[1746763749322,6.1849,161.73,161.67,3.9988]
[1746763749827,6.1849,161.73,161.69,6.1862]
[1746763751128,38.3844,161.74,161.69,6.1862]
[1746763751828,6.1847,161.73,161.69,6.1862]
[1746763752222,32.2,161.74,161.68,6.1865]
[1746763752424,6.1853,161.72,161.67,1.968]
[1746763752629,6.1853,161.72,161.65,64.3]
[1746763752828,32.2,161.74,161.65,64.3]
[1746763753128,6.1857,161.71,161.67,6.1867]
[1746763753629,6.1861,161.7,161.66,6.1873]
[1746763753928,6.1861,161.7,161.65,32.2]
[1746763754128,6.1863,161.69,161.64,38.2878]
[1746763754429,32.08,161.71,161.64,6.1878]
[1746763755530,6.1862,161.69,161.64,6.1878]
[1746763755727,32.1,161.69,161.61,32.1]
[1746763756131,6.1866,161.68,161.61,32.1]
[1746763756331,6.1866,161.68,161.6,9.90881736]
[1746763756525,1.9734,161.73,161.6,9.90881736]
[1746763756724,32.1,161.72,161.6,9.90881736]
[1746763757124,32.1,161.72,161.65,6.1877]
[1746763757325,32.1,161.72,161.6,9.90881736]
[1746763757730,32.1,161.72,161.68,6.1865]
[1746763758036,32.1,161.72,161.64,32.08]
[1746763758229,32.1,161.72,161.65,6.0802]
[1746763758732,2.0444,161.78,161.65,6.0802]
[1746763758934,64.18,161.77,161.65,6.0802]
[1746763759129,6.1835,161.76,161.65,6.0802]
[1746763759331,64.18,161.77,161.66,9.90881736]
[1746763759731,32.1,161.77,161.66,9.90881736]
[1746763759932,38.2834,161.77,161.66,9.90881736]
[1746763760335,32.1,161.77,161.66,9.90881736]
[1746763761138,6.1838,161.76,161.71,6.1853]
[1746763761437,32.1,161.77,161.71,6.1853]
[1746763762236,32.1,161.77,161.69,6.1861]
[1746763763036,6.1846,161.74,161.69,6.1861]
[1746763764833,32.1,161.77,161.65,6.0802]
[1746763765238,0.9008,161.76,161.65,6.0802]
[1746763765838,32.1,161.77,161.65,6.0802]
[1746763766732,6.1843,161.74,161.69,6.1859]
[1746763766939,6.1843,161.74,161.65,6.0802]
[1746763767338,6.1843,161.74,161.69,6.1859]
[1746763767737,6.1849,161.73,161.69,6.1859]
[1746763768035,32.1,161.77,161.7,6.1857]
[1746763768240,32.1,161.76,161.65,6.0802]
[1746763768539,32.1,161.76,161.71,6.1851]
[1746763769635,6.1841,161.75,161.71,6.1851]
[1746763769828,32.1,161.76,161.7,6.1857]
[1746763770236,6.1847,161.73,161.69,6.1861]
[1746763770430,32.1,161.76,161.67,32.02]
[1746763770738,6.1849,161.73,161.68,6.1863]
[1746763771241,6.1842,161.75,161.68,6.1863]
[1746763771441,32.1,161.76,161.67,38.2069]
[1746763771938,6.1847,161.73,161.67,38.2069]
[1746763772136,32.1,161.76,161.68,6.1865]
[1746763772835,6.1843,161.74,161.68,6.1865]
[1746763773036,6.1843,161.74,161.69,6.1858]
[1746763773937,6.1843,161.74,161.7,6.1857]
[1746763774137,6.184,161.75,161.7,6.1857]
[1746763775443,38.2836,161.76,161.67,32.02]
[1746763776642,32.1,161.75,161.67,32.02]
[1746763777044,32.1,161.75,161.71,6.185]
[1746763777344,38.2839,161.75,161.71,6.185]
[1746763777839,38.2839,161.75,161.7,6.1857]
[1746763778242,32.1,161.75,161.66,31.98]
[1746763778439,32.1,161.75,161.69,6.1861]
[1746763779143,6.1849,161.73,161.68,6.1864]
[1746763779644,6.1849,161.73,161.69,6.1861]
[1746763780843,6.1845,161.74,161.66,31.98]
[1746763781846,6.1845,161.74,161.69,6.1859]
[1746763784045,6.197926,161.79,161.71,6.1852]
[1746763784344,6.197926,161.79,161.66,38.157926]
[1746763784345,31.96,161.78,161.69,6.197926]
[1746763785043,38.1428,161.78,161.69,6.197926]
[1746763785244,31.96,161.78,161.69,6.197926]
[1746763785435,31.96,161.78,161.75,6.1836]
[1746763785642,31.96,161.78,161.71,31.96]
[1746763785944,31.96,161.78,161.75,6.1837]
[1746763786344,38.1427,161.78,161.75,6.1837]
[1746763786645,38.1427,161.78,161.74,6.1842]
[1746763786845,31.96,161.78,161.72,8.260326]
[1746763787044,38.1422,161.78,161.72,8.260326]
[1746763787644,38.1422,161.78,161.74,6.1834]
[1746763788246,6.1826,161.77,161.73,6.184]
[1746763789443,31.96,161.78,161.73,6.184]
[1746763790248,38.1422,161.78,161.74,6.1835]
[1746763790649,31.96,161.78,161.72,2.0624]
[1746763790849,6.1825,161.77,161.73,6.1837]
[1746763791050,31.96,161.78,161.72,2.0624]
[1746763791751,38.1422,161.78,161.74,6.1835]
[1746763792552,31.96,161.78,161.75,6.1832]
[1746763793052,38.1421,161.78,161.75,6.1832]
[1746763793354,38.1421,161.78,161.74,6.1836]
[1746763794254,31.96,161.78,161.72,2.0624]
[1746763794753,38.1423,161.78,161.74,6.1835]
[1746763795055,31.96,161.78,161.74,6.1835]
[1746763795455,31.96,161.78,161.75,6.1829]
[1746763796356,31.96,161.78,161.74,6.1836]
[1746763796357,38.1424,161.78,161.74,6.1836]
[1746763797263,31.96,161.78,161.75,6.1832]
[1746763798261,31.96,161.78,161.76,6.1828]
[1746763799260,369.3562,161.91,161.72,6.0002]
[1746763799459,31.96,161.86,161.72,15.91094842]
[1746763799664,31.96,161.86,161.73,31.88]
[1746763799865,6.1816,161.8,161.75,6.1831]
[1746763800064,6.1816,161.8,161.73,31.88]
[1746763800264,31.96,161.81,161.73,31.88]
[1746763800461,31.96,161.81,161.68,31.86]
[1746763800665,2.0338,161.8,161.67,63.82]
[1746763801065,38.1418,161.79,161.73,6.1837]
[1746763801264,31.96,161.79,161.68,9.91074842]
[1746763801465,38.1418,161.79,161.74,6.1833]
[1746763801666,38.1418,161.79,161.69,5.9248]
[1746763802064,6.1822,161.78,161.74,6.1833]
[1746763802368,31.96,161.79,161.69,5.9248]
[1746763802765,6.1828,161.77,161.69,5.9248]
[1746763802962,31.96,161.79,161.69,5.9248]
[1746763803865,38.1418,161.79,161.69,5.9248]
[1746763804067,31.96,161.79,161.69,5.9248]
[1746763804367,6.1821,161.78,161.69,5.9248]
[1746763804570,31.96,161.79,161.69,5.9248]
[1746763804867,31.96,161.79,161.73,6.1837]
[1746763805171,31.96,161.79,161.71,31.84]
[1746763805358,31.96,161.79,161.7,31.84]
[1746763806969,6.1828,161.77,161.73,6.184]
[1746763807168,31.96,161.79,161.73,6.184]
[1746763807567,6.1827,161.77,161.73,6.184]
[1746763807762,31.96,161.79,161.7,38.03482396]
[1746763808264,6.1826,161.77,161.72,6.1841]
[1746763808468,31.96,161.79,161.72,6.1841]
[1746763808761,6.1828,161.77,161.7,38.03482396]
[1746763808960,31.96,161.79,161.7,38.03482396]
[1746763809569,6.1829,161.76,161.72,6.1841]
[1746763811267,6.1826,161.77,161.73,6.184]
[1746763811467,31.96,161.79,161.7,37.99482396]
[1746763812567,31.96,161.79,161.73,6.19482396]
[1746763813370,31.96,161.79,161.7,12.37982396]
[1746763813564,31.96,161.79,161.7,6.19482396]
[1746763814172,6.1833,161.75,161.71,6.1848]
[1746763814370,31.96,161.79,161.69,37.7048]
[1746763814569,2.0757,161.78,161.69,31.78]
[1746763814769,6.1844,161.73,161.69,31.78]
[1746763815172,31.78,161.76,161.69,31.78]
[1746763815769,31.78,161.76,161.64,31.78]
[1746763815963,6.1855,161.7,161.65,6.187]
[1746763816278,31.8,161.71,161.63,31.8]
[1746763816571,63.58,161.71,161.62,6.19482396]
[1746763816971,6.1863,161.68,161.63,6.1878]
[1746763817273,63.58,161.71,161.62,6.19482396]
[1746763817471,6.1861,161.68,161.63,6.1876]
[1746763817771,6.1861,161.68,161.62,6.19482396]
[1746763817972,6.1861,161.68,161.61,37.942]
[1746763818171,6.1861,161.68,161.63,6.1878]
[1746763818372,6.1861,161.68,161.61,37.942]
[1746763819074,6.1857,161.69,161.64,6.1874]
[1746763819572,6.1857,161.69,161.61,37.942]
[1746763819768,6.186,161.68,161.61,37.942]
[1746763819970,63.58,161.71,161.61,44.13682396]
[1746763820166,63.58,161.71,161.64,6.19482396]
[1746763820370,31.8,161.71,161.64,6.19482396]
[1746763820972,37.9848,161.71,161.61,44.13682396]
[1746763821474,37.9848,161.71,161.66,6.1863]
[1746763821670,31.8,161.71,161.61,44.13682396]
[1746763821871,31.8,161.71,161.64,6.19482396]
[1746763822071,37.9849,161.71,161.67,6.1862]
[1746763822470,31.8,161.71,161.64,6.19482396]
[1746763822872,6.1852,161.7,161.66,6.1864]
[1746763824172,6.1856,161.69,161.65,6.187]
[1746763824671,31.8,161.71,161.64,37.93482396]
[1746763825273,6.1853,161.7,161.66,6.1864]
[1746763826180,37.9849,161.71,161.66,6.1864]
[1746763826478,31.8,161.71,161.66,6.1864]
[1746763826872,6.1853,161.7,161.67,6.1863]
[1746763827271,6.1853,161.7,161.64,37.93482396]
[1746763827570,6.1853,161.7,161.66,6.1864]
[1746763828876,31.8,161.71,161.61,6.162]
[1746763829172,31.8,161.71,161.61,37.882]
[1746763829375,31.8,161.71,161.61,33.7409]
[1746763829778,31.8,161.71,161.61,2.0209]
[1746763830663,31.8,161.71,161.61,4.0828]
[1746763831074,31.8,161.71,161.61,2.0619]
[1746763831676,6.1863,161.68,161.63,6.1878]
[1746763831973,31.8,161.71,161.63,6.1878]
[1746763832173,6.1863,161.67,161.62,6.1881]
[1746763832678,6.1863,161.67,161.61,2.0619]
[1746763833072,6.186,161.68,161.63,6.1878]
[1746763833275,31.7,161.69,161.61,2.0619]
[1746763833879,6.187,161.66,161.61,2.0619]
[1746763834371,6.1868,161.66,161.62,6.1881]
[1746763834775,31.7,161.69,161.61,2.0619]
[1746763834974,6.186,161.68,161.64,6.1874]
[1746763836077,37.8857,161.69,161.65,6.1871]
[1746763836478,31.7,161.69,161.65,6.1871]
[1746763836673,31.7,161.69,161.64,6.1873]
[1746763837574,6.1864,161.67,161.63,6.1877]
[1746763838175,31.7,161.69,161.61,2.0619]
[1746763839674,6.1873,161.65,161.61,8.2503]
[1746763840879,6.1873,161.65,161.61,6.1884]
[1746763842379,31.64,161.66,161.58,37.99482396]
[1746763842877,6.1885,161.62,161.58,44.18442396]
[1746763843176,6.1885,161.62,161.58,12.38442396]
[1746763844376,6.188,161.63,161.59,6.1893]
[1746763845272,6.1883,161.62,161.59,6.1893]
[1746763845577,31.64,161.65,161.56,2.0444]
[1746763845774,37.85482396,161.64,161.52,1.9788]
[1746763845980,38.76042396,161.64,161.52,1.9788]
[1746763846381,6.19482396,161.61,161.52,1.9788]
[1746763846581,6.1908,161.56,161.52,8.1708]
[1746763846977,63.3,161.6,161.52,1.9788]
[1746763847177,63.3,161.6,161.53,6.19482396]
[1746763847380,357.0,161.64,161.53,37.81482396]
[1746763847580,31.66,161.63,161.56,6.19482396]
[1746763847880,31.66,161.63,161.58,6.1897]
[1746763848081,31.66,161.63,161.56,6.19482396]
[1746763848281,31.66,161.63,161.59,6.189]
[1746763849581,37.8479,161.63,161.59,6.189]
[1746763849877,31.66,161.65,161.59,6.19482396]
[1746763850382,31.66,161.65,161.64,6.1875]
[1746763850681,37.8457,161.69,161.62,6.19482396]
[1746763851577,6.1861,161.68,161.64,6.1874]
[1746763851778,6.1861,161.68,161.61,31.62]
[1746763853683,31.66,161.69,161.65,6.1868]
[1746763855584,31.66,161.69,161.61,31.62]
[1746763855983,37.8458,161.69,161.61,31.62]
[1746763856487,37.8458,161.69,161.66,6.1866]
[1746763857488,6.1852,161.7,161.66,6.1866]
[1746763857788,31.66,161.69,161.66,6.1866]
[1746763858188,37.8456,161.69,161.66,6.1866]
[1746763858487,31.66,161.69,161.66,6.1866]
[1746763859792,31.66,161.69,161.61,31.62]
[1746763859989,31.66,161.69,161.62,41.58272979]
[1746763860291,31.66,161.69,161.68,6.1859]
[1746763864093,31.66,161.69,161.64,31.56]
[1746763864600,6.1845,161.72,161.69,6.1855]
[1746763864988,6.1854,161.7,161.64,31.56]
[1746763865197,6.1854,161.7,161.67,6.1863]
[1746763865790,566.36,161.73,161.69,6.1854]
[1746763866294,572.5441,161.73,161.7,6.1851]
[1746763866500,37.8241,161.73,161.68,31.52]
[1746763866895,31.64,161.73,161.68,31.52]
[1746763867097,31.64,161.73,161.67,3.9296]
[1746763867398,6.1851,161.71,161.67,10.1157]
[1746763867799,6.1851,161.71,161.67,3.9296]
[1746763867995,6.1851,161.71,161.68,6.1859]
[1746763868197,6.1852,161.7,161.67,3.9296]
[1746763868499,31.64,161.73,161.67,3.9296]
[1746763868699,6.185,161.71,161.67,10.1156]
[1746763868898,31.64,161.73,161.67,10.1156]
[1746763869201,6.1851,161.71,161.67,10.1156]
[1746763869899,6.1846,161.72,161.68,6.1857]
[1746763870100,31.64,161.73,161.67,3.9296]
[1746763871001,31.64,161.73,161.7,6.1849]
[1746763872701,37.8241,161.73,161.7,6.1849]
[1746763873198,31.64,161.73,161.69,6.1855]
[1746763874405,37.8243,161.73,161.7,6.1852]
[1746763875804,31.64,161.73,161.71,6.1848]
[1746763876305,31.64,161.73,161.67,1.9485]
[1746763876603,31.64,161.73,161.71,6.1847]
[1746763876803,31.64,161.73,161.67,1.9485]
[1746763877003,149.30439854,161.77,161.69,6.1979081]
[1746763877200,6.1835,161.75,161.73,6.184]
[1746763877798,6.1835,161.75,161.72,6.1842]
[1746763879304,6.1837,161.74,161.71,6.1847]
[1746763880399,149.30439854,161.77,161.69,31.46]
[1746763880805,6.184,161.74,161.7,6.1851]
[1746763881300,149.30439854,161.77,161.67,1.9485]
[1746763881501,155.50230664,161.77,161.67,1.9485]
[1746763881806,2.0505,161.76,161.67,1.9485]
[1746763881996,31.42,161.75,161.67,1.9485]
[1746763882705,31.42,161.75,161.64,1.9442]
[1746763882905,31.42,161.75,161.64,33.3642]
[1746763883505,6.1858,161.69,161.64,39.5513]
[1746763883700,6.1858,161.69,161.64,33.3642]
[1746763885005,6.1858,161.69,161.65,6.187]
[1746763885402,6.1852,161.7,161.64,33.3642]
[1746763885706,6.1852,161.7,161.66,6.1866]
[1746763885903,31.48,161.72,161.66,6.1866]
[1746763886103,6.1856,161.69,161.64,33.3642]
[1746763887110,6.1856,161.69,161.65,6.1869]
[1746763888311,6.186,161.68,161.64,39.5515]
[1746763888711,6.186,161.68,161.64,33.3642]
[1746763888910,6.186,161.68,161.64,33.3442]
[1746763889209,6.186,161.68,161.64,39.5315]
[1746763889807,6.186,161.68,161.65,6.187]
[1746763890014,6.186,161.68,161.64,33.3442]
[1746763890511,6.186,161.68,161.65,6.1871]
[1746763892219,6.1863,161.67,161.64,39.5316]
[1746763893218,6.1863,161.67,161.65,6.1871]
[1746763893419,6.1863,161.67,161.64,33.3442]
[1746763893822,6.1861,161.68,161.64,33.3442]
[1746763894320,6.1861,161.68,161.65,6.1871]
[1746763895121,6.1863,161.67,161.64,39.5315]
[1746763900524,6.1868,161.66,161.64,33.3442]
[1746763901121,6.1865,161.67,161.64,39.5316]
[1746763902723,31.48,161.72,161.64,1.9442]
[1746763902931,31.34,161.71,161.63,1.9883]
[1746763903323,6.1875,161.64,161.6,6.1888]
[1746763904629,31.34,161.68,161.59,37.529]
[1746763905227,31.34,161.68,161.59,6.189]
[1746763905425,31.34,161.68,161.58,33.412]
[1746763905726,31.34,161.67,161.58,33.412]
[1746763906032,31.34,161.67,161.58,2.072]
[1746763906727,6.1886,161.61,161.58,2.072]
[1746763907631,6.1886,161.61,161.58,8.2617]
[1746763908333,31.34,161.64,161.58,2.072]
[1746763912234,6.188,161.63,161.6,6.189]
[1746763913339,37.5275,161.64,161.6,6.189]
[1746763914028,37.5275,161.64,161.61,6.1886]
[1746763914239,31.34,161.64,161.58,33.372]
[1746763914729,37.5276,161.64,161.6,6.1887]
[1746763915235,31.34,161.64,161.6,6.1887]
[1746763915537,6.1879,161.63,161.6,6.1887]
[1746763915738,31.34,161.64,161.6,6.1887]
[1746763916036,31.34,161.64,161.61,6.1886]
[1746763917032,37.5276,161.64,161.61,6.1886]
[1746763919833,31.34,161.64,161.58,33.372]
[1746763920032,31.34,161.68,161.6,6.1979081]
[1746763920438,37.5262,161.68,161.6,6.1979081]
[1746763921540,37.5262,161.68,161.65,6.187]
[1746763922240,31.34,161.68,161.63,6.1979081]
[1746763922837,37.5262,161.68,161.65,6.187]
[1746763923544,37.5262,161.68,161.66,6.1867]
[1746763923743,31.34,161.68,161.66,6.1867]
[1746763924244,37.526,161.68,161.65,6.1869]
[1746763925044,31.34,161.68,161.66,6.1866]
[1746763925249,31.34,161.72,161.63,6.1979081]
[1746763925447,31.34,161.72,161.66,37.4579081]
[1746763925748,37.5245,161.72,161.69,6.1853]
[1746763926449,31.34,161.72,161.7,6.1851]
[1746763926747,31.34,161.72,161.66,37.4579081]
[1746763926947,31.34,161.76,161.66,37.4579081]
[1746763927148,6.1838,161.74,161.71,6.1845]
[1746763927449,31.34,161.76,161.66,37.4579081]
[1746763928451,6.184,161.73,161.69,6.1856]
[1746763928845,6.184,161.73,161.66,37.4579081]
[1746763929050,534.52,161.88,161.74,6.1835]
[1746763929356,31.34,161.82,161.74,6.1835]
[1746763929651,31.34,161.82,161.73,6.1839]
[1746763930654,6.1827,161.77,161.73,6.1839]
[1746763931655,6.1827,161.77,161.74,6.1836]
[1746763932153,31.34,161.82,161.72,31.22]
[1746763932552,31.34,161.82,161.76,6.1829]
[1746763933455,31.34,161.82,161.77,6.1825]
[1746763933660,37.5209,161.82,161.74,6.1979081]
[1746763933853,37.5209,161.82,161.74,37.3979081]
[1746763934253,31.34,161.82,161.74,37.3979081]
[1746763934659,6.1817,161.8,161.76,6.1828]
[1746763935260,6.1819,161.79,161.74,37.3979081]
[1746763935762,6.1819,161.79,161.75,6.1829]
[1746763936066,6.1815,161.8,161.74,37.3979081]
[1746763936262,31.34,161.82,161.74,31.2]
[1746763936462,31.34,161.82,161.74,37.3836]
[1746763936660,6.1824,161.78,161.74,37.3836]
[1746763937960,6.1829,161.76,161.72,6.1841]
[1746763938463,6.1829,161.76,161.72,37.3441]
[1746763939369,6.1833,161.75,161.72,37.3441]
[1746763939561,6.1833,161.75,161.72,31.16]
[1746763939864,31.18,161.78,161.72,31.16]
[1746763940165,6.1831,161.76,161.72,37.3443]
[1746763940863,6.1831,161.76,161.73,6.184]
[1746763942065,6.1831,161.76,161.72,37.3443]
[1746763942469,6.1831,161.76,161.72,31.16]
[1746763943465,6.1831,161.76,161.72,37.3443]
[1746763943666,6.1831,161.76,161.7,33.1803]
[1746763943667,31.18,161.78,161.7,33.1803]
[1746763943863,31.18,161.78,161.69,37.3379081]
[1746763944065,62.32,161.78,161.69,37.3379081]
[1746763944569,62.32,161.78,161.7,6.1851]
[1746763945070,6.184,161.74,161.7,6.1851]
[1746763945272,62.32,161.78,161.69,37.3379081]
[1746763945765,62.32,161.78,161.69,6.1979081]
[1746763945978,6.183,161.76,161.72,6.1843]
[1746763946874,6.1833,161.75,161.72,6.1843]
[1746763947070,6.1833,161.75,161.71,6.1846]
[1746763949274,6.1833,161.75,161.72,6.1843]
[1746763951777,31.18,161.78,161.69,37.3179081]
[1746763952469,6.1826,161.77,161.69,37.3179081]
[1746763953072,6.1826,161.77,161.74,6.1834]
[1746763953273,37.3622,161.78,161.74,6.1834]
[1746763953774,31.18,161.78,161.69,37.3179081]
[1746763954175,6.1818,161.79,161.69,37.3179081]
[1746763954378,6.1818,161.79,161.76,6.1826]
[1746763954979,6.1811,161.81,161.78,6.1821]
[1746763955277,31.18,161.82,161.74,31.1]
[1746763955474,6.181,161.81,161.77,6.1821]
[1746763955676,6.181,161.81,161.74,31.1]
[1746763956182,37.3607,161.82,161.78,6.1818]
[1746763957179,37.3607,161.82,161.79,6.1817]
[1746763957383,6.181,161.81,161.74,31.1]
[1746763957579,31.18,161.82,161.74,31.1]
[1746763958779,6.1815,161.8,161.76,6.1826]
[1746763959079,31.18,161.82,161.74,31.1]
[1746763959281,6.182,161.79,161.75,6.1831]
[1746763959881,6.182,161.79,161.76,6.1829]
[1746763960379,6.1815,161.8,161.76,6.1829]
[1746763960685,6.1815,161.8,161.77,6.1824]
[1746763961185,6.1811,161.81,161.77,6.1824]
[1746763962178,6.1814,161.8,161.77,6.1824]
[1746763962378,6.1814,161.8,161.76,6.1827]
[1746763962577,6.1814,161.8,161.74,31.1]
[1746763962779,6.1814,161.8,161.76,6.1825]
[1746763963783,6.1814,161.8,161.77,6.1824]
[1746763969488,6.181,161.81,161.74,31.1]
[1746763970089,6.181,161.81,161.77,6.1822]
[1746763970289,6.181,161.81,161.74,31.1]
[1746763970589,6.1814,161.8,161.74,31.1]
[1746763970795,6.1814,161.8,161.77,6.1825]
[1746763971788,6.1811,161.81,161.78,6.1821]
[1746763972891,6.1814,161.8,161.77,6.1823]
[1746763973486,6.1811,161.81,161.77,6.1823]
[1746763973899,6.1811,161.81,161.78,6.1821]
[1746763974384,31.18,161.82,161.74,31.1]
[1746763974588,31.18,161.82,161.76,6.1979081]
[1746763975803,31.18,161.82,161.8,6.1811]
[1746763977698,31.02,161.86,161.79,6.1979081]
[1746763977897,31.02,161.86,161.79,12.1227081]
[1746763978095,37.1992,161.86,161.79,12.1227081]
[1746763979401,37.1992,161.86,161.82,6.1803]
[1746763980302,31.02,161.86,161.79,12.1227081]
[1746763980498,31.02,161.86,161.79,34.9235]
[1746763980899,6.1801,161.84,161.8,6.1813]
[1746763981100,6.1801,161.84,161.79,34.9235]
[1746763981305,6.1795,161.85,161.81,6.1807]
[1746763981496,31.02,161.86,161.81,6.1807]
[1746763982498,31.02,161.86,161.75,6.1979081]
[1746763982699,61.94,161.86,161.77,30.92]
[1746763982898,61.94,161.86,161.79,6.1816]
[1746763983406,6.1804,161.83,161.79,6.1816]
[1746763983702,61.94,161.86,161.77,30.92]
[1746763984003,68.1194,161.86,161.78,6.1979081]
[1746763984202,61.94,161.86,161.78,6.1979081]
[1746763984504,6.1797,161.85,161.78,6.1979081]
[1746763984705,6.1797,161.85,161.81,6.1807]
[1746763985606,6.1797,161.85,161.82,6.1806]
[1746763986204,114.11042765,161.91,161.81,68.1179081]
[1746763986405,114.11042765,161.91,161.84,6.1979081]
[1746763986601,114.11042765,161.91,161.85,30.9]
[1746763986805,31.02,161.93,161.87,6.1979081]
[1746763987400,31.02,161.93,161.91,6.1769]
[1746763987803,565.1,161.97,161.89,30.9]
[1746763988002,565.1,161.97,161.89,37.0979081]
[1746763988403,6.1754,161.96,161.92,6.1764]
[1746763988901,31.02,161.97,161.89,68.0979081]
[1746763989905,6.1759,161.95,161.89,68.0979081]
[1746763990202,31.02,161.97,161.89,68.0979081]
[1746763990506,6.1759,161.95,161.91,6.1771]
[1746763990706,31.02,161.97,161.89,68.0979081]